Workbook

Sheet Table 1
B2: PRESUPUESTO: 1ª FASE CONTROL PIEZOMETRICO Y AUTOMATIZACION LECTURA PENDULOS EN ARRIARAN
A4: Partida | B4: Uds. | C4: Concepto | D4: Prec. Unit | E4: Importe
A5: Capitulo 1.- Perforación e inyección
A7: 11 | B7: 1.00 | C7: Partida alzada para puesta en obra de equipo de perforación e inyección. | D7: 3,600.00 € | E7: =B7*D7 -> 3,600.0 €
A8: 12 | B8: 16.00 | C8: Unidad de emboquillamiento en taladro. | D8: 45.00 € | E8: =B8*D8 -> 720.0 €
A9: 13 | B9: 97.60 | C9: Metro de perforación en Hormigón hasta 20 m Ø55mm, a rotación y con extracción de testigo | D9: 92.00 € | E9: 8,979.2 €
A10: 14 | B10: 16.00 | C10: Metro de perforación en terreno hasta 20 m Ø55mm, a rotación y con extracción de testigo | D10: 102.00 € | E10: 1,632.0 €
A11: 15 | B11: 113.60 | C11: Ml de inyección de taladro con lechada de cemento, incluyendo alquiler de equipos y lechada, hasta el 125% del volumen normal del taladro. | D11: 6.50 € | E11: 738.4 €
A12: 16 | B12: 0.50 | C12: Suplemento por tonelada de lechada en exceso de inyección sobre 125% del volumen normal. | D12: 1.650,00 € | E12: 825.0 €
C14: Total Capítulo 1 | E14: =SUM(E7:E13) -> 16,494.6 €
A16: Capitulo 2.- Piezómetros
A18: 21 | B18: 16.00 | C18: Piezómetro de Cuerda vibrante de bajo cambio de volumen, con termorresistencia incorporada y filtro cerámico para medida directa. Varios rangos. (siete secciones de control en contacto hormigón - roca, con un piezómetro en taladro vertical por aguas arriba y otro inclinado hacia aguas abajo; dos piezómetros más en galería transversal para captar pérdida de carga) | D18: 505.00 € | E18: =B18*D18 -> 8,080.0 €
A19: 22 | B19: 1480.00 | C19: Ml de cable de cuatro conductores, con malla, adecuado para cablear instrumentación de ingeniería civil. | D19: 1.65 € | E19: =B19*D19 -> 2,442.0 €
A20: 23 | B20: 70.00 | C20: Metro de tubería de PVC para canalización de cables (diámetro 25 mm) | D20: 4.10 € | E20: 287.0 €
A21: 24 | B21: 120.00 | C21: Metro de tubería de PVC para canalización de cables (diámetro 32 mm) | D21: 4.95 € | E21: 594.0 €
A22: 25 | B22: 190.00 | C22: Metro de tubería de PVC para canalización de cables (diámetro 40 mm) | D22: 6.02 € | E22: 1,143.8 €
C24: Total Capítulo 2 | E24: =SUM(E16:E23) -> 12,546.8 €
A26: Capítulo 3.- Automatización péndulo inverso y directo
A28: 31 | B28: 1.00 | C28: Sistema óptico CCD para automatización de dos péndulos, con realización de lecturas sin contacto con el hilo. Formado por 4 sensores, uno para cada coordenada a medir, controlados por microprocesador. Con presentación de lecturas en una pantalla local, memoria para almacenamiento de datos y salida de datos RS-232 y RS-485, para conexión a sistema automático. | D28: 4,755.50 € | E28: =B28*D28 -> 4,755.5 €
A29: 32 | B29: 1.00 | C29: Sistema óptico CCD para automatización de péndulos, con realización de lecturas sin contacto con el hilo. Formado por 2 sensores, uno para cada coordenada, controlados por microprocesador. Con presentación de lecturas en una pantalla local, memoria para almacenamiento de datos y salida de datos RS-232 y RS-485, para conexión a sistema automático. | D29: 3,689.50 € | E29: =B29*D29 -> 3,689.5 €
A30: 33 | B30: 50.00 | C30: M.l. de cable 3*1,5 mm para alimentación de unidades a 220 VAC. | D30: 1.58 € | E30: 79.0 €
C32: Total Capítulo 3 | E32: =SUM(E28:E31) -> 8,524.0 €
A34: 4.- Instalación y puesta en marcha
A36: 41 | B36: 1.00 | C36: Partida íntegra para Análisis y redacción de informes, proyectos y estudios específicos al inicio, en el transcurso y a la finalización de los trabajos | D36: 550.00 € | E36: =B36*D36 -> 550.0 €
A37: 42 | B37: 1.00 | C37: Partida íntegra para Desplazamiento, ejecución de taladros y montaje de los equipos en obra por equipo técnico compuesto por montadores especialistas en perforación, inyección, auscultación y automatizaciones. Tiempo total estimado 12 semanas | D37: 5,530.00 € | E37: =B37*D37 -> 5,530.0 €
A38: 43 | B38: 1.00 | C38: Partida íntegra para Supervisión, coordinación y dirección de equipos obra compuesto por técnico (Ingeniero de Caminos, ,o similar) especialista en auscultación y automatizaciones., incluso elaboración de informe final | D38: 1,198.20 € | E38: 1,198.2 €
A39: 44 | B39: 1.00 | C39: Partida íntegra paraTraslados,dietas y kilometraje | D39: 1,025.00 € | E39: 1,025.0 €
C41: Total Capítulo 4 | E41: =SUM(E36:E40) -> 8,303.2 €
A43: Capítulo 5.- Gestión de Residuos
A45: 45 | B45: 14.10 | C45: Coste de gestión de Tn de Residuo con CÓDIGO LER 17.01.01 HORMIGÓN (Orden MAM/304/2002) tratada en planta por gestor autorizado por el Departamento de Medio Ambiente de la CAPV, de acuerdo con el Decreto 112/2012 de, 26 de junio, recogidas en contenedores de distintos formatos. Incluye costes administrativos y documentación justificativa de IKS eem según Decreto 183/2012, de 25 de septiembre (DSC, Documentos de Seguimiento y Control), así como otros certificados. | D45: 8.00 € | E45: =D45*B45 -> 112.8 €
A46: 46 | B46: 0.20 | C46: Coste de gestión de Tn de Residuo con CÓDIGO LER 17.01.03 TEJAS Y MATERIALES CERAMICOS (Orden MAM/304/2002) tratada en planta por gestor autorizado por el Departamento de Medio Ambiente de la CAPV, de acuerdo con el Decreto 112/2012 de, 26 de junio, recogidas en contenedores de distintos formatos. Incluye costes administrativos y documentación justificativa de IKS eem según Decreto 183/2012, de 25 de septiembre (DSC, Documentos de Seguimiento y Control), así como otros certificados. | D46: 8.00 € | E46: 1.6 €
A47: 47 | B47: 0.50 | C47: Coste de gestión de Tn de Residuo con CÓDIGO LER 17.02.01 MADERA LIMPIA O NATURAL SIN TRATAMIENTOS (Orden MAM/304/2002) tratada en planta por gestor autorizado por el Departamento de Medio Ambiente de la CAPV, de acuerdo con el Decreto 112/2012 de, 26 de junio, recogidas en contenedores de distintos formatos. Incluye costes administrativos y documentación justificativa de IKS eem según Decreto 183/2012, de 25 de septiembre (DSC, Documentos de Seguimiento y Control), así como otros certificados. | D47: 20.00 € | E47: 10.0 €
A48: 48 | B48: 0.10 | C48: Coste de gestión de Tn de Residuo con CÓDIGO LER 17.02.02 VIDRIO (Orden MAM/304/2002) tratada en planta por gestor autorizado por el Departamento de Medio Ambiente de la CAPV, de acuerdo con el Decreto 112/2012 de, 26 de junio, recogidas en contenedores de distintos formatos. Incluye costes administrativos y documentación justificativa de IKS eem según Decreto 183/2012, de 25 de septiembre (DSC, Documentos de Seguimiento y Control), así como otros certificados. | D48: 45.00 € | E48: 4.5 €
A49: 49 | B49: 0.80 | C49: Coste de gestión de Tn de Residuo con CÓDIGO LER 17.02.03 PLÁSTICO (Orden MAM/304/2002) tratada en planta por gestor autorizado por el Departamento de Medio Ambiente de la CAPV, de acuerdo con el Decreto 112/2012 de, 26 de junio, recogidas en contenedores de distintos formatos. Incluye costes administrativos y documentación justificativa de IKS eem según Decreto 183/2012, de 25 de septiembre (DSC, Documentos de Seguimiento y Control), así como otros certificados. | D49: 26.00 € | E49: 20.8 €
A50: 50 | B50: 0.10 | C50: Coste de gestión de Tn de Residuo con CÓDIGO LER 17.03.02 MEZCLAS BITUMINOSAS DISTINTAS DE LAS ESPECIFICADAS EN EL CÓDIGO 17.03.01. (< 10%) (Orden MAM/304/2002) tratada en planta por gestor autorizado por el Departamento de Medio Ambiente de la CAPV, de acuerdo con el Decreto 112/2012 de, 26 de junio, recogidas en contenedores de distintos formatos. Incluye costes administrativos y documentación justificativa de IKS eem según Decreto 183/2012, de 25 de septiembre (DSC, Documentos de Seguimiento y Control), así como otros certificados. | D50: 15.00 € | E50: 1.5 €
A51: 51 | B51: 0.12 | C51: Coste de gestión de Tn de Residuo con CÓDIGO LER 17.04.07 METALES MEZCLADOS (Orden MAM/304/2002) tratada en planta por gestor autorizado por el Departamento de Medio Ambiente de la CAPV, de acuerdo con el Decreto 112/2012 de, 26 de junio, recogidas en contenedores de distintos formatos. Incluye costes administrativos y documentación justificativa de IKS eem según Decreto 183/2012, de 25 de septiembre (DSC, Documentos de Seguimiento y Control), así como otros certificados. | D51: 0.00 € | E51: 0.0 €
A52: 52 | B52: 0.25 | C52: Coste de gestión de Tn de Residuo con CÓDIGO LER 17.05.04 TIERRAS Y ROCAS NO CONTAMINADAS (Orden MAM/304/2002) tratada en planta por gestor autorizado por el Departamento de Medio Ambiente de la CAPV, de acuerdo con el Decreto 112/2012 de, 26 de junio, recogidas en contenedores de distintos formatos. Incluye costes administrativos y documentación justificativa de IKS eem según Decreto 183/2012, de 25 de septiembre (DSC, Documentos de Seguimiento y Control), así como otros certificados. | D52: 8.00 € | E52: 2.0 €
A53: 53 | B53: 0.30 | C53: Coste de gestión de Tn de Residuo CÓDIGO LER 17.09.04 RESIDUOS MEZCLADOS DE CONSTRUCCIÓN Y DEMOLICIÓN DISTINTOS DE LOS ESPECIFICADOS EN LOS CÓDIGOS 17.09.02 Y 17.09.03 (Orden MAM/304/2002) tratada en planta por gestor autorizado por el Departamento de Medio Ambiente de la CAPV, de acuerdo con el Decreto 112/2012 de, 26 de junio, recogidas en contenedores de distintos formatos. Incluye costes administrativos y documentación justificativa de IKS eem según Decreto 183/2012, de 25 de septiembre (DSC, Documentos de Seguimiento y Control), así como otros certificados. | D53: 12.00 € | E53: 3.6 €
A54: 54 | B54: 0.28 | C54: Coste de gestión de Tn de Residuo con CÓDIGO LER 03.03.08 PAPEL-CARTÓN (Orden MAM/304/2002) tratada en planta por gestor autorizado por el Departamento de Medio Ambiente de la CAPV, de acuerdo con el Decreto 112/2012 de, 26 de junio, recogidas en contenedores de distintos formatos. Incluye costes administrativos y documentación justificativa de IKS eem según Decreto 183/2012, de 25 de septiembre (DSC, Documentos de Seguimiento y Control), así como otros certificados. | D54: 14.00 € | E54: 3.9 €
A55: 55 | B55: 0.18 | C55: Coste de gestión de Tn de Residuo LER 20.03.01 BASURAS GENERADAS POR LOS OPERARIOS (Orden MAM/304/2002) tratada en planta por gestor autorizado por el Departamento de Medio Ambiente de la CAPV, de acuerdo con el Decreto 112/2012 de, 26 de junio, recogidas en contenedores de distintos formatos. Incluye costes administrativos y documentación justificativa de IKS eem según Decreto 183/2012, de 25 de septiembre (DSC, Documentos de Seguimiento y Control), así como otros certificados. | D55: 66.00 € | E55: 11.9 €
A56: 56 | B56: 0.00 | C56: Coste de gestión de Tn de Residuo con CÓDIGO LER 17.09.03* OTROS RESIDUOS DE CONSTRUCCIÓN Y DEMOLICIÓN (INCLUIDOS LOS RESIDUOS MEZCLADOS) QUE CONTIENEN SUSTANCIAS PELIGROSAS (Orden MAM/304/2002) tratada en planta por gestor autorizado por el Departamento de Medio Ambiente de la CAPV, de acuerdo con el Decreto 112/2012 de, 26 de junio, recogidas en contenedores de distintos formatos, propios para RP. Incluye costes administrativos y documentación justificativa de IKS eem según Decreto 183/2012, de 25 de septiembre (DCS, Documentos de Control y Seguimiento), así como otros certificados. | D56: 330.00 € | E56: 0.0 €
A57: 57 | B57: 0.00 | C57: Coste de gestión de Tn de Residuo con CÓDIGO LER 17.06.03* Y 17.06.05 MATERIALES DE CONSTRUCCIÓN QUE CONTIENEN AMIANTO (Orden MAM/304/2002) tratada en planta por gestor autorizado por el Departamento de Medio Ambiente de la CAPV, de acuerdo con el Decreto 112/2012 de, 26 de junio, recogidas en contenedores de distintos formatos, propios para RP. Incluye costes administrativos y documentación justificativa de IKS según Decreto 183/2012, de 25 de septiembre (DCS, Documentos de Control y Seguimiento), así como otros certificados. | D57: 330.00 € | E57: 0.0 €
A58: 58 | B58: 1.00 | C58: Ud de redación del Documento de Gestión de Residuos y su aprobación inicial. Recopilacion de los documentos DCS y DSC en su caso y elaboración del Informe Final de Gestión de Residuos. Implantación y gestión | D58: 350.00 € | E58: 350.0 €
C60: Total Capítulo 5 | E60: =SUM(E45:E59) -> 522.6 €
A63: Capitulo 6.-Seguridad y Salud
A65: 59 | B65: 1.00 € | C65: Ud de implantación de medidas de seguridad y salud definidas en el Plan de Seguridad y Salud a realizar, incluso la propia redacción , tramitación de apertura del centro de trabajo, implantación de caseta vestuario, WC, ... etc. Totalmente implantado | D65: 1,650.00 € | E65: =B65*D65 -> 1,650.00 €
C67: Total Capítulo 6 | E67: =SUM(E64:E65) -> 1,650.0 €
C70: RESUMEN
C73: Total Capítulo 1 Perforación e Inyección | E73: =E14 -> 16,494.60 €
C75: Total Capítulo 2 Instalación de Piezómetros | E75: =E24 -> 12,546.80 €
C77: Total Capítulo 3 Automatización Péndulo (direct+Inver) | E77: =E32 -> 8,524.00 €
C79: Total Capítulo 4 Instalación y puesta en marcha | E79: =E41 -> 8,303.20 €
C81: Total Capitulo 5 Gestión de Residuos | E81: =E60 -> 522.60 €
C83: Total Capítulo 6 Seguridad y Salud | E83: =E67 -> 1,650.00 €
C86: TOTAL PRESUPUESTO EJECUCION | E86: =SUM(E73:E84) -> 48,041.20 €
C88: IVA 21 | E88: =E86*0.21 -> 10,088.65 €
C90: TOTAL | E90: =E86+E88 -> 58,129.85 €
